Cogmind - Beta 13 @@@ ROGUE MODE // 2024.04.28 @ 18:43:51 Player: Rubbe Result: Destroyed by S-10 Pest with Light Assault Rifle Performance ------------- Evolutions (0) 0 Regions Visited (4) 800 Robots Destroyed (6) 30 Value Destroyed (165) 165 Prototype IDs (1) 20 Alien Tech Used (0) 0 Bonus (0) 0 TOTAL SCORE: 1015 Bonus ------- None Cogmind --------- Core Integrity 0/250 Matter 290/300 Energy 100/100 System Corruption 0% Temperature Cool (0) Movement Treading (800) Ox8 Location -9/Mines Parts ------- > --- POWER (1) -------- (None) > --- PROPULSION (2) --- Improved Treads > --- UTILITY (2) ------ Humpback > --- WEAPON (2) ------- (None) > --- INVENTORY (35) --- Improved Aluminum Leg Improved Aluminum Leg High-capacity Storage Unit Melee Analysis Suite Core Shielding Light Armor Plating EM Shotgun Small Laser Small Laser 8R-AWN's Boregun Mining Claw Peak State ------------ > --- POWER ------------ Ion Engine > --- PROPULSION ------- Aluminum Leg Aluminum Leg > --- UTILITY ---------- Large Storage Unit Light Armor Plating > --- WEAPON ----------- EM Pulse Gun 8R-AWN's Boregun > --- INVENTORY -------- Ion Engine Light Armor Plating Medium Laser Small Laser Small Laser Mining Claw [Rating: 16] Favorites ----------- Power Ion Engine Engine Ion Engine Propulsion Aluminum Leg Treads Improved Treads Leg Aluminum Leg Utility Humpback Storage Humpback Protection Light Armor Plating Weapon EM Pulse Gun Energy Gun EM Pulse Gun Ballistic Gun 8R-AWN's Boregun Slashing Weapon Mining Claw Build | -11 -10 -10 -10 -9 ------- Run | Yrd Mat Min Exi Min Slots Evolved . | . . . . . Power . | . . . . . Propulsion . | . . . . . Utility . | . . . . . Weapon . | . . . . . Parts Attached 15 | 6 4 1 1 3 Power 1 | 1 . . . . Engine 1 | 1 . . . . Core . | . . . . . Reactor . | . . . . . Propulsion 4 | 2 . . . 2 Treads 1 | . . . . 1 Leg 3 | 2 . . . 1 Wheel . | . . . . . Hover . | . . . . . Flight . | . . . . . Utility 4 | . 3 . 1 . Device . | . . . . . Storage 2 | . 1 . 1 . Processor . | . . . . . Hackware . | . . . . . Protection 2 | . 2 . . . Artifact . | . . . . . Weapon 6 | 3 1 1 . 1 Energy Gun 4 | 3 . . . 1 Energy Cannon . | . . . . . Ballistic Gun 1 | . . 1 . . Ballistic Cannon . | . . . . . Launcher . | . . . . . Special Weapon . | . . . . . Impact Weapon . | . . . . . Slashing Weapon 1 | . 1 . . . Piercing Weapon . | . . . . . Special Melee Weapon . | . . . . . Unidentified Prototypes 1 | . . 1 . . Parts Lost 5 | . . . . 5 Power 1 | . . . . 1 Propulsion 2 | . . . . 2 Utility . | . . . . . Weapon 2 | . . . . 2 Highest Loss Streak 3 | . . . . 3 To Critical Strikes . | . . . . . Average Slot Usage (%) 80 | . 82 100 87 67 Engine 13 | . 14 14 14 13 Leg 24 | . 28 28 28 17 Storage 13 | . 2 14 14 14 Protection 2 | . 8 14 2 . Energy Gun 17 | . 19 14 14 22 Ballistic Gun 8 | . . 12 14 . Naked Turns . | . . . . . Heaviest Build 213 | 9 32 36 213 209 Greatest Support 23 | 20 20 20 20 23 Greatest Overweight (x) 68 | . 1 1 10 68 Average Overweight (x) 6 | . . 1 5 17 Largest Inventory Capacity 35 | 5 15 15 35 35 Average Capacity 31 | 5 6 15 31 35 Most Carried 12 | 4 6 6 9 12 Average Carried 6 | 1 3 6 5 10 Final Capacity 35 | 5 15 15 35 35 Final Carried 11 | 2 6 6 5 11 Class Distribution -------------------- 82% | Hauler-Mutant 17% | Mutant Dominant Class ---------------- Mutant | -10/Materials Mutant | -10/Mines Hauler-Mutant | -10/Exiles Hauler-Mutant | -9/Mines Resources | -11 -10 -10 -10 -9 ----------- Run | Yrd Mat Min Exi Min Matter Collected 361 | 156 41 . . 164 Remotely . | . . . . . Salvage Created 265 | . 41 . . 224 Parts 7 | . 2 . . 5 Haulers Intercepted 1 | . 1 . . . Recyclers Shooed . | . . . . . Parts Field Recycled . | . . . . . Retrieved Matter . | . . . . . Parts Self-Destructed . | . . . . . Prevented . | . . . . . Kills | -11 -10 -10 -10 -9 ------- Run | Yrd Mat Min Exi Min Combat Hostiles Destroyed 4 | . . . . 4 Guns 3 | . . . . 3 Classes Destroyed 4 | . 1 . . 3 Worker 1 | . . . . 1 Hauler 1 | . 1 . . . Grunt 3 | . . . . 3 Duelist 1 | . . . . 1 Best Kill Streak 2 | . 1 . . 2 Combat Bots Only 2 | . . . . 2 Max Kills in Single Turn 1 | . 1 . . 1 Gunslinging . | . . . . . Exploded . | . . . . . Melee . | . . . . . Uniques/NPCs Destroyed . | . . . . . Combat | -11 -10 -10 -10 -9 -------- Run | Yrd Mat Min Exi Min Hostile Shots Fired 109 | . 8 . . 101 Missed 31 | . 5 . . 26 Damage Taken 1064 | . 69 . . 995 Core 254 | . 10 . . 244 Absorbed by Shields . | . . . . . Core Remaining (%) 100 | 100 . . . . Volleys Fired 28 | . . . 1 27 Largest 2 | . . . 2 2 Hottest 90 | . . . 70 90 Shots Fired 40 | . . . 2 38 Gun 40 | . . . 2 38 Cannon . | . . . . . Launcher . | . . . . . Special . | . . . . . Kinetic 6 | . . . 1 5 Thermal 18 | . . . . 18 Explosive . | . . . . . Electromagnetic 16 | . . . 1 15 Robot Hit Streak 7 | . . . . 7 Robot Miss Streak 2 | . . . . 2 Penetration Max . | . . . . . Secondary Targets . | . . . . . Shots Hit Robots 24 | . 1 . . 23 Core Hits 11 | . 1 . . 10 Critical Kills 1 | . . . . 1 Critical Parts Destroyed 1 | . . . . 1 Critical Strikes 2 | . . . . 2 Destroy 2 | . . . . 2 Melee Attacks 1 | . 1 . . . Impact . | . . . . . Slashing 1 | . 1 . . . Piercing . | . . . . . Sneak Attacks 1 | . 1 . . . Combat Hostiles . | . . . . . Follow-up Attacks . | . . . . . Damage Inflicted 428 | . 49 . . 379 Guns 325 | . . . . 325 Cannons . | . . . . . Explosions 54 | . . . . 54 Melee 49 | . 49 . . . Ramming . | . . . . . Kinetic 71 | . . . . 71 Thermal 205 | . . . . 205 Explosive . | . . . . . Electromagnetic 103 | . . . . 103 Impact . | . . . . . Slashing 49 | . 49 . . . Piercing . | . . . . . Highest Corruption . | . . . . . Average Corruption . | . . . . . Corruption Purged . | . . . . . Corruption Blocked . | . . . . . Overload Shots . | . . . . . Overflow Damage . | . . . . . Projectiles . | . . . . . Explosions . | . . . . . Melee . | . . . . . Knockbacks . | . . . . . Impact . | . . . . . Kinetic . | . . . . . Secondary . | . . . . . Self-Inflicted Damage 48 | . . . . 48 Shots 1 | . . . . 1 Rammed . | . . . . . Targets Rammed . | . . . . . Kicked . | . . . . . Crushed . | . . . . . Highest Temperature 204 | . . . 18 204 Average Temperature 69 | . . . 9 72 Received Heat Transfer 171 | . 18 . . 153 Siege Activations . | . . . . . Robots Corrupted . | . . . . . Combat Hostiles . | . . . . . Parts Fried . | . . . . . Impact Corruptions . | . . . . . Robots Melted 1 | . . . . 1 Combat Hostiles 1 | . . . . 1 Parts Melted 2 | . . . . 2 Heat Transferred 494 | . . . . 494 Parts Sabotaged . | . . . . . Parts Stolen . | . . . . . Parts Stripped . | . . . . . Power Chain Reactions 1 | . . . . 1 Alert | -11 -10 -10 -10 -9 ------- Run | Yrd Mat Min Exi Min Peak Influence 58 | . 7 2 . 58 Initial 2 | . . 2 . . Average 14 | . 3 2 . 17 Maximum Alert Level . | . . . . . Low Security (%) 100 | 100 100 100 . 100 Level 1 . | . . . . . Level 2 . | . . . . . Level 3 . | . . . . . Level 4 . | . . . . . Level 5 . | . . . . . High Security . | . . . . . Max Security . | . . . . . Squads Dispatched 3 | . 3 . . . Investigation 2 | . 2 . . . Extermination . | . . . . . Reinforcement 1 | . 1 . . . Assault . | . . . . . Garrison . | . . . . . Intercept . | . . . . . Searches Triggered . | . . . . . Construction Impeded . | . . . . . Haulers Reinforced . | . . . . . Active Scanning Responses . | . . . . . Cargo Convoy Interrupts . | . . . . . Stealth | -11 -10 -10 -10 -9 --------- Run | Yrd Mat Min Exi Min Distress Signals . | . . . . . Communications Jammed . | . . . . . Distress Signals . | . . . . . Times Spotted 11 | . 3 . . 8 Peak Tracking Total 4 | . 3 . . 4 Tactical Retreats . | . . . . . Traps | -11 -10 -10 -10 -9 ------- Run | Yrd Mat Min Exi Min Traps Triggered 2 | . 2 . . . Indirectly . | . . . . . Trap Hack Attempts . | . . . . . Triggered . | . . . . . Disarmed . | . . . . . Reprogrammed . | . . . . . Reused . | . . . . . Traps Extracted . | . . . . . Installed . | . . . . . Triggered . | . . . . . Machines | -11 -10 -10 -10 -9 ---------- Run | Yrd Mat Min Exi Min Machines Disabled . | . . . . . Max in Single Turn . | . . . . . Machines Repaired . | . . . . . Machines Dismantled . | . . . . . Machines Sabotaged . | . . . . . Overloaded Fab Kills . | . . . . . Hacking | -11 -10 -10 -10 -9 --------- Run | Yrd Mat Min Exi Min Machines Accessed 2 | . 1 . 1 . Terminals 1 | . 1 . . . Fabricators . | . . . . . Repair Stations . | . . . . . Recycling Units . | . . . . . Scanalyzers . | . . . . . Garrison Access . | . . . . . Total Hacks 27 | . 4 . 23 . Successful 23 | . . . 23 . Failed 4 | . 4 . . . Catastrophic . | . . . . . Database Lockouts . | . . . . . Manual . | . . . . . Terminals 4 | . 4 . . . Fabricators . | . . . . . Repair Stations . | . . . . . Recycling Units . | . . . . . Scanalyzers . | . . . . . Garrison Access . | . . . . . Terminal Hacks 23 | . . . 23 . Record 23 | . . . 23 . Fabricator Hacks . | . . . . . Repair Station Hacks . | . . . . . Recycling Unit Hacks . | . . . . . Scanalyzer . | . . . . . Garrison Access Hacks . | . . . . . Unauthorized Hacks . | . . . . . Terminals . | . . . . . Fabricators . | . . . . . Repair Stations . | . . . . . Recycling Units . | . . . . . Scanalyzers . | . . . . . Garrison Access . | . . . . . Data Cores Recovered . | . . . . . Used . | . . . . . Hacking Detections 1 | . 1 . . . Full Trace Events 1 | . 1 . . . Feedback Events . | . . . . . Feedback Blocked . | . . . . . Robot Schematics Acquired . | . . . . . Robots Built . | . . . . . Authchips . | . . . . . Time . | . . . . . Total Robot Build Rating . | . . . . . Part Schematics Acquired . | . . . . . Parts Built . | . . . . . Authchips . | . . . . . Time . | . . . . . Total Part Build Rating . | . . . . . Parts Repaired . | . . . . . Time . | . . . . . Parts Recycled . | . . . . . Recycled Matter . | . . . . . Retrieved Matter . | . . . . . Retrieved Components . | . . . . . Parts Scanalyzed . | . . . . . Part Schematics Acquired . | . . . . . Parts Damaged . | . . . . . Bothacking | -11 -10 -10 -10 -9 ------------ Run | Yrd Mat Min Exi Min Used RIF Installer . | . . . . . Robots Hacked . | . . . . . Non-combat . | . . . . . Combat . | . . . . . Robot Hacks Applied . | . . . . . Relay Couplers Released . | . . . . . Fabnet Peak Effective % . | . . . . . Robots Rewired . | . . . . . Allies Hacked . | . . . . . Hacks Repelled . | . . . . . Allies | -11 -10 -10 -10 -9 -------- Run | Yrd Mat Min Exi Min Total Allies . | . . . . . Largest Group . | . . . . . Highest-Rated Group . | . . . . . Highest-Rated Ally . | . . . . . Total Orders . | . . . . . Ally Attacks . | . . . . . Total Damage . | . . . . . Kills . | . . . . . Allies Corrupted . | . . . . . Allies Melted . | . . . . . Intel | -11 -10 -10 -10 -9 ------- Run | Yrd Mat Min Exi Min Robot Analysis Total . | . . . . . Derelict Logs Recovered 1 | . . . . 1 Drone Launches . | . . . . . Drone Recoveries . | . . . . . Exploration | -11 -10 -10 -10 -9 ------------- Run | Yrd Mat Min Exi Min Turns Passed 4851 | 58 216 84 2798 1695 Spaces Moved 913 | 41 155 44 534 139 Core 24 | 6 . . . 18 Treads 1 | . . . . 1 Legs 888 | 35 155 44 534 120 Wheels . | . . . . . Hover . | . . . . . Flight . | . . . . . Fastest Speed 50 | 50 120 190 190 800 Average Speed 519 | 109 129 190 523 1165 Slowest Speed 3450 | 120 190 190 820 3450 Overloaded Moves . | . . . . . Propulsion Burnouts . | . . . . . Robots Hopped . | . . . . . Cave-ins Triggered . | . . . . . Exploration Rate (%) 31 | 4 21 19 79 32 Regions Visited 4 Branch Regions 3 Pre-discovered Areas 1 | . . . 1 . Known Exits Taken . | . . . . . Unknown Exits Taken 4 | 1 1 1 1 . Scrap Searched 1 | . . . . 1 Spaces Dug . | . . . . . Terrain Destroyed 10 | . . . 2 8 Melee . | . . . . . Projectile 3 | . . . 2 1 AOE 7 | . . . . 7 Terrain Rammed . | . . . . . Walls Destroyed . | . . . . . Machines Disabled . | . . . . . Actions | -11 -10 -10 -10 -9 --------- Run | Yrd Mat Min Exi Min Total 984 | 53 169 44 540 178 Wait . | . . . . . Move 909 | 40 154 43 533 139 Hop . | . . . . . Pick Up 27 | 7 8 . 3 9 Fast Attach . | . . . . . Attach 12 | 5 3 . 1 3 Detach 1 | . . . 1 . Swap 3 | 1 1 1 . . Drop 3 | . 2 . 1 . Fire 28 | . . . 1 27 Melee 1 | . 1 . . . Ram . | . . . . . Kick . | . . . . . Crush . | . . . . . Escape Stasis . | . . . . . Rewire . | . . . . . Trap . | . . . . . Miscellaneous . | . . . . . Route ------- -11/Scrapyard -10/Materials -10/Mines -10/Exiles (discovered 2 exits: [*Min x2]) -9/Mines (discovered 1 exit: Mat) History --------- Turn | Location | Event 9 | -11/Scrapyard | Discovered new exit (range 14) 59 | -11/Scrapyard | Entered Materials 236 | -10/Materials | Met 8R-AWN 254 | -10/Materials | Discovered new exit (range 12) 265 | -10/Materials | Found Prototype Ballistic Gun 275 | -10/Materials | Entered Mines 277 | -10/Mines | Followed 8R-AWN into the Mines 281 | -10/Mines | Identified 8R-AWN's Boregun 288 | -10/Mines | Met a Derelict bent on vengeance 302 | -10/Mines | Build established: Mutant 351 | -10/Mines | Discovered new exit (range 5) 359 | -10/Mines | Entered Exiles 416 | -10/Exiles | Discovered new exit (range 15) 473 | -10/Exiles | Welcomed by 8R-AWN 511 | -10/Exiles | Met EX-HEX 617 | -10/Exiles | Met EX-DEC 710 | -10/Exiles | Learned location of Zion (-7) 984 | -10/Exiles | Discovered new exit (range 14) 1147 | -10/Exiles | Build established: Hauler-Mutant 1665 | -10/Exiles | Visited The Gauntlet 3157 | -10/Exiles | Entered Mines 3411 | -9/Mines | Identified exit to Materials 4248 | -9/Mines | Lost 3 parts (2n1w) 4831 | -9/Mines | Core integrity fell below 50% 4844 | -9/Mines | Core integrity fell below 20% 4852 | -9/Mines | Destroyed by S-10 Pest with Light Assault Rifle Last Messages --------------- Aluminum Leg destroyed. G-34 Mercenary destroyed. G-47 Trooper heat spikes uncontrollably. G-47 Trooper overheating. G-47 Trooper heat damages Aluminum Leg. Aluminum Leg destroyed. G-47 Trooper overheating. G-47 Trooper critical meltdown. [Achievement: It's Just You] Imp. Heat Sink melted. Lgt. Nuclear Core melted. R-06 Scavenger collects Aluminum Leg. R-06 Scavenger collects Sml. Laser. K-01 Serf collects debris. Acquired 35 matter. Acquired 1 matter. C-30 ARC bursts open, deploying its payload. S-10 Pest unfolds itself. Ion Engine destroyed. Med. Laser destroyed. Map ----- +----------------------------------------------------+ | ????????????????????????????????????? | | ????????????????????????????????????? | | ????????????????????????????????????? | | ????????????????????????????????????? | | ?????????????######???#############?? | | ?????????????# ##?## #?? | | ?????????????# ### #?? | | ??????????????# ###### #?? | | ??????????????## ## #????# ### | | ???????????????# #### #???# | | ???????????????# ##??# #??# | | ?????